fUSD/lending_fUSD_20250923
["ID","MTS","AMOUNT","RATE_DAILY","PERIOD"]
[387217622,1758653445487,-400.0,0.00024657,3]
[387217623,1758653445496,-1462.79,0.00024657,3]
[387217624,1758653445505,-1252.2,0.00024657,3]
[387217625,1758653445515,-581.7,0.00024657,3]
[387217626,1758653445525,-640.22,0.00024657,3]
[387217627,1758653445536,-1411.15,0.00024657,3]
[387217628,1758653445545,-400.0,0.00024657,3]
[387217629,1758653445555,-400.0,0.00024657,3]
[387217630,1758653445565,-1618.64,0.00024657,3]
[387217631,1758653445574,-470.51,0.00024657,3]
[387217632,1758653445583,-400.0,0.00024657,3]
[387217633,1758653445592,-1176.96,0.00024657,3]
[387217634,1758653445602,-400.0,0.00024657,3]
[387217635,1758653445611,-211.47309581,0.00024657,3]
[387217636,1758653445621,-400.0,0.00024657,3]
[387217637,1758653445631,-1590.15,0.00024657,3]
[387217638,1758653445641,-400.0,0.00024657,3]
[387217639,1758653445650,-1035.38,0.00024657,3]
[387217640,1758653445660,-400.0,0.00024657,3]
[387217641,1758653445669,-400.0,0.00024657,3]
[387217642,1758653445679,-501.88,0.00024657,3]
[387217643,1758653445688,-400.0,0.00024657,3]
[387217644,1758653445697,-400.0,0.00024657,3]
[387217645,1758653445707,-400.0,0.00024657,3]
[387217646,1758653445715,-1486.67,0.00024657,3]
[387217647,1758653445724,-400.0,0.00024657,3]
[387217648,1758653445733,-400.0,0.00024657,3]
[387217649,1758653445744,-1568.54,0.00024657,3]
[387217650,1758653445754,-400.0,0.00024657,3]
[387217651,1758653445763,-1132.28,0.00024657,3]
[387217652,1758653445773,-400.0,0.00024657,3]
[387217653,1758653445782,-400.0,0.00024657,3]
[387217654,1758653445792,-400.0,0.00024657,3]
[387217655,1758653445802,-400.0,0.00024657,3]
[387217656,1758653445811,-361.61976707,0.00024657,3]
[387217657,1758653445873,-329.68023293,0.00024657,3]
[387217658,1758653445882,-1154.06920581,0.00024657,3]
[387217659,1758653445893,-138.33079419,0.00024657,3]
[387217660,1758653445903,-424.93,0.00024657,3]
[387217661,1758653445912,-1761.9,0.00024657,3]
[387217662,1758653445921,-400.0,0.00024657,3]
[387217663,1758653445931,-400.0,0.00024657,3]
[387217664,1758653445940,-400.0,0.00024657,3]
[387217665,1758653445949,-1597.64,0.00024657,3]
[387217666,1758653445958,-400.0,0.00024657,3]
[387217667,1758653445967,-400.0,0.00024657,3]
[387217668,1758653445976,-1092.67,0.00024657,3]
[387217669,1758653445985,-400.0,0.00024657,3]
[387217670,1758653445995,-1238.98,0.00024657,3]
[387217671,1758653446004,-400.0,0.00024657,3]
[387217672,1758653446013,-400.0,0.00024657,3]
[387217673,1758653446022,-804.85,0.00024657,3]
[387217674,1758653446031,-400.0,0.00024657,3]
[387217675,1758653446041,-400.0,0.00024657,3]
[387217676,1758653446051,-1254.45,0.00024657,3]
[387217677,1758653446060,-400.0,0.00024657,3]
[387217678,1758653446069,-400.0,0.00024657,3]
[387217679,1758653446078,-400.0,0.00024657,3]
[387217680,1758653446087,-400.0,0.00024657,3]
[387217681,1758653446097,-400.0,0.00024657,3]
[387217682,1758653446106,-1152.67,0.00024657,3]
[387217683,1758653446115,-796.12,0.00024657,3]
[387217684,1758653446124,-400.0,0.00024657,3]
[387217685,1758653446133,-1547.46,0.00024657,3]
[387217686,1758653446143,-400.0,0.00024657,3]
[387217688,1758653446151,-414.08805113,0.00024657,3]
[387217690,1758653446161,-440.29,0.00024657,3]
[387217691,1758653446171,-1562.17,0.00024657,3]
[387217692,1758653446181,-1062.08,0.00024657,3]
[387217693,1758653446190,-1066.59,0.00024657,3]
[387217694,1758653446200,-114.77930964,0.00024657,3]
[387217855,1758653447770,-2332.4,0.00024557,2]
[387217864,1758653447846,-256.0728557,0.00024557,2]
[387217866,1758653447858,-6574.81761565,0.00024557,2]
[387217868,1758653447867,-285.22069036,0.00024657,3]
[387217870,1758653447877,-400.0,0.00024657,3]
[387217872,1758653447887,-400.0,0.00024657,3]
[387217874,1758653447896,-400.0,0.00024657,3]
[387217876,1758653447906,-1635.03,0.00024657,3]
[387217878,1758653447915,-400.0,0.00024657,3]
[387217880,1758653447924,-400.0,0.00024657,3]
[387217882,1758653447934,-1623.48,0.00024657,3]
[387217884,1758653447943,-730.85,0.00024657,3]
[387217886,1758653447953,-400.0,0.00024657,3]
[387217888,1758653447962,-730.85,0.00024657,3]
[387217891,1758653447971,-730.85,0.00024657,3]
[387217893,1758653447981,-730.85,0.00024657,3]
[387217895,1758653447990,-730.85,0.00024657,3]
[387217897,1758653448000,-730.85,0.00024657,3]
[387217899,1758653448009,-730.85,0.00024657,3]
[387217901,1758653448019,-730.85,0.00024657,3]
[387217903,1758653448029,-400.0,0.00024657,3]
[387217905,1758653448043,-730.85,0.00024657,3]
[387217907,1758653448054,-730.85,0.00024657,3]
[387217909,1758653448064,-544.2,0.00024657,3]
[387217912,1758653448074,-400.0,0.00024657,3]
[387217914,1758653448084,-730.85,0.00024657,3]
[387217916,1758653448094,-730.85,0.00024657,3]
[387217918,1758653448105,-730.85,0.00024657,3]
[387217920,1758653448116,-400.0,0.00024657,3]
[387217922,1758653448126,-730.85,0.00024657,3]
[387217924,1758653448137,-730.85,0.00024657,3]
[387217926,1758653448149,-730.85,0.00024657,3]
[387217928,1758653448160,-730.85,0.00024657,3]
[387217931,1758653448171,-730.85,0.00024657,3]
[387217933,1758653448182,-400.0,0.00024657,3]
[387217935,1758653448192,-320.9350146,0.00024657,3]
[387217943,1758653448261,-409.9149854,0.00024657,3]
[387217945,1758653448271,-198.64945499,0.00024657,3]
[387218025,1758653449137,-265.59999999,0.00024618,2]
[387218028,1758653449158,-533.44473989,0.00024618,2]
[387218039,1758653449260,-1179.0,0.00022354,2]
[387218041,1758653449270,-1138.8,0.00024618,2]
[387218055,1758653449394,-7225.44573139,0.00024618,2]
[387218057,1758653449405,-532.20054501,0.00024657,3]
[387218059,1758653449414,-730.85,0.00024657,3]
[387218061,1758653449425,-400.0,0.00024657,3]
[387218063,1758653449436,-730.85,0.00024657,3]
[387218065,1758653449445,-439.9,0.00024657,3]
[387218067,1758653449455,-730.85,0.00024657,3]
[387218070,1758653449465,-400.0,0.00024657,3]
[387218072,1758653449476,-730.91,0.00024657,3]
[387218074,1758653449490,-400.0,0.00024657,3]
[387218076,1758653449500,-943.65,0.00024657,3]
[387218078,1758653449510,-210.4401236,0.00024657,3]
[387218093,1758653449651,-189.5598764,0.00024657,3]
[387218095,1758653449660,-400.0,0.00024657,3]
[387218097,1758653449669,-355.5579722,0.00024657,3]
[387218121,1758653461269,-424.93,0.00021362,2]
[387218122,1758653467709,-75.07,0.00021362,2]
[387218123,1758653467740,-500.0,0.00021362,2]
[387218124,1758653467771,-111.76,0.00021362,2]
[387218125,1758653467787,-75.07,0.00021362,2]
[387218126,1758653467803,-313.17,0.00021362,2]
[387218127,1758653467812,-186.83,0.00021362,2]
[387218128,1758653467835,-313.17,0.00021362,2]
[387218129,1758653467845,-186.83,0.00021362,2]
[387218130,1758653475261,-63.17,0.00021362,2]
[387218131,1758653475290,-78.66,0.0002301,2]
[387218132,1758653475303,-63.17,0.0002301,2]
[387218133,1758653475322,-53.17,0.0002301,2]
[387218134,1758653475332,-141.83,0.0002301,2]
[387218135,1758653483072,-400.0,0.0002301,2]
[387218136,1758653489549,-400.0,0.00022,2]
[387218137,1758653496707,-256.65,0.00022,2]
[387218138,1758653496729,-256.65,0.0002301,2]
[387218139,1758653496753,-1084.34,0.0002301,2]
[387218140,1758653505114,-400.0,0.0002301,2]
[387218143,1758653511166,-182.82,0.0002301,2]
[387218144,1758653511179,-34.36,0.0002301,2]
[387218145,1758653511189,-182.82,0.0002301,2]
[387218146,1758653518803,-254.34958455,0.0002301,2]
[387218147,1758653518832,-67.32703924,0.0002301,2]
[387218148,1758653518867,-254.34958455,0.0002301,2]
[387218149,1758653518905,-194.96716787,0.0002301,2]
[387218150,1758653518914,-321.67662379,0.000231,2]
[387218151,1758653526652,-400.0,0.000231,2]
[387218152,1758653532917,-1238.98,0.00023194,3]
[387218153,1758653540058,-400.0,0.000231,2]
[387218155,1758653548233,-142.10337621,0.000231,2]
[387218156,1758653548579,-142.10337621,0.00023187,2]
[387218157,1758653548591,-58.83598556,0.00023187,2]
[387218158,1758653548601,-56.95726202,0.00023194,3]
[387218159,1758653555069,-221.17,0.00023,2]
[387218160,1758653555082,-362.51,0.00023,2]
[387218161,1758653555091,-23.81203532,0.00023194,3]
[387218162,1758653555100,-197.35796468,0.00023287,2]
[387218163,1758653562176,-400.0,0.00023287,2]
[387218164,1758653570076,-400.0,0.00023287,2]
[387218165,1758653576961,-1254.45,0.00023287,2]
[387218166,1758653583963,-400.0,0.00023287,2]
[387218167,1758653591772,-152.0,0.00023148,3]
[387218168,1758653591782,-248.0,0.00023287,2]
[387218169,1758653598421,-400.0,0.00023287,2]
[387218170,1758653606251,-400.0,0.00023287,2]
[387218171,1758653613651,-167.4608,0.0002147,2]
[387218172,1758653613731,-65.0784,0.0002147,2]
[387218173,1758653613741,-167.4608,0.00023287,2]
[387218175,1758653620930,-1152.67,0.00022916,2]
[387218177,1758653627977,-796.12,0.00022916,2]
[387218178,1758653635584,-400.0,0.00022916,2]
[387218179,1758653642784,-1547.46,0.00022916,2]
[387218180,1758653649823,-400.0,0.00022916,2]
[387218181,1758653657342,-414.08805113,0.00022916,2]
[387218183,1758653665395,-440.29,0.00022916,2]
[387218184,1758653673586,-199.26732697,0.00022916,2]
[387218185,1758653673610,-199.26732697,0.000231,2]
[387218186,1758653673622,-663.54534606,0.000231,2]
[387218187,1758653680730,-274.59732697,0.000231,2]
[387218188,1758653680753,-274.59732697,0.00023287,2]
[387218189,1758653680764,-517.39534606,0.00023287,2]
[387218191,1758653769737,-393.317,0.00022354,2]
[387218194,1758654097851,1817.05038865,0.00025,120]
[387218195,1758654098236,1817.05038865,0.000253,120]
[387218196,1758654098755,1817.05038865,0.000255,120]
[387218197,1758654099251,1817.05038865,0.000258,120]
[387218198,1758654099769,1817.05038865,0.00026,120]
[387218199,1758654100281,1817.05038865,0.000263,120]
[387218200,1758654100796,1817.05038865,0.000265,120]
[387218201,1758654101590,1817.05038865,0.000268,120]
[387218202,1758654102384,1817.05038865,0.000271,120]
[387218203,1758654102779,1817.05038865,0.000273,120]
[387218205,1758654274397,186.64,0.0002616,120]
[387218211,1758654631913,-151.0,0.00022198,2]
[387218212,1758654631923,-151.0,0.00022199,2]
[387218213,1758654631933,-17.21079721,0.00022201,2]
[387218214,1758654631957,-133.78920279,0.00022201,2]
[387218215,1758654631967,-200.93936177,0.00022228,2]
[387218216,1758654631976,-150.0,0.00022315,4]
[387218217,1758654631985,-150.0,0.00022315,4]
[387218218,1758654631995,-150.0,0.00022315,4]
[387218219,1758654632004,-150.0,0.00022315,4]
[387218220,1758654632014,-150.0,0.00022315,4]
[387218221,1758654632023,-150.0,0.00022315,4]
[387218222,1758654632033,-150.0,0.00022315,4]
[387218223,1758654632042,-1200.0,0.00022337,2]
[387218228,1758654632343,-516.64379166,0.00022345,2]
[387218229,1758654632353,-300.0,0.00022352,2]
[387218231,1758654632363,-18887.0,0.00022354,2]
[387218233,1758654632372,-727.0,0.00022354,2]
[387218235,1758654632381,-4523.0,0.00022354,2]
[387218237,1758654632391,-4177.0,0.00022354,2]
[387218240,1758654632401,-775.536,0.00022354,2]
[387218241,1758654632410,-185.99,0.00022465,2]
[387218243,1758654632419,-5000.0,0.00022467,2]
[387218245,1758654632429,-609.73,0.00022478,2]
[387218247,1758654632438,-754.08,0.00022562,2]
[387218249,1758654632448,-1373.8,0.00022565,2]
[387218251,1758654632457,-3064.0,0.00022567,2]
[387218253,1758654632467,-309.67,0.00022861,2]
[387218254,1758654632477,-850.0,0.00022996,2]
[387218256,1758654632486,-500.0,0.00022997,2]
[387218258,1758654632496,-500.0,0.00022997,2]
[387218260,1758654632505,-151.0,0.00022997,2]
[387218262,1758654632515,-292.55423066,0.00022997,2]
[387218263,1758654632528,-207.44576934,0.00022997,2]
[387218264,1758654632537,-500.0,0.00022997,2]
[387218265,1758654632546,-151.0,0.00022997,2]
[387218266,1758654632555,-500.0,0.00022997,2]
[387218267,1758654632564,-151.0,0.00022997,2]
[387218268,1758654632573,-500.0,0.00022997,2]
[387218269,1758654632582,-500.0,0.00022997,2]
[387218270,1758654632592,-200.0,0.00022997,2]
[387218271,1758654632601,-500.0,0.00022997,2]
[387218272,1758654632610,-500.0,0.00022997,2]
[387218273,1758654632620,-500.0,0.00022997,2]
[387218274,1758654632629,-500.0,0.00022997,2]
[387218275,1758654632639,-500.0,0.00022997,2]
[387218276,1758654632648,-500.0,0.00022997,2]
[387218277,1758654632657,-500.0,0.00022997,2]
[387218278,1758654632666,-500.0,0.00022997,2]
[387218279,1758654632676,-500.0,0.00022997,2]
[387218280,1758654632685,-200.0,0.00022997,2]
[387218281,1758654632694,-151.0,0.00022997,2]
[387218282,1758654632704,-151.0,0.00022997,2]
[387218283,1758654632714,-151.0,0.00022997,2]
[387218284,1758654632723,-151.0,0.00022997,2]
[387218285,1758654632732,-151.0,0.00022997,2]
[387218286,1758654632741,-151.0,0.00022997,2]
[387218287,1758654632751,-151.0,0.00022997,2]
[387218288,1758654632760,-151.0,0.00022997,2]
[387218289,1758654632769,-151.0,0.00022997,2]
[387218290,1758654632778,-151.0,0.00022997,2]
[387218291,1758654632788,-151.0,0.00022997,2]
[387218292,1758654632797,-165.86442737,0.00022997,2]
[387218293,1758654632809,-1312.1505088,0.00023011,2]
[387218294,1758654632819,-8832.2584878,0.00023011,2]
[387218295,1758654632828,-3624.0126385,0.00023011,2]
[387218296,1758654632838,-322.6107,0.00023018,2]
[387218297,1758654632852,-160.0,0.00023018,2]
[387218298,1758654632861,-670.58624095,0.00023018,2]
[387218299,1758654632871,-8565.75555911,0.00023018,2]
[387218300,1758654632881,-151.0,0.00023018,2]
[387218301,1758654632891,-151.0,0.00023018,2]
[387218302,1758654632901,-151.0,0.00023018,2]
[387218303,1758654632911,-151.0,0.00023018,2]
[387218304,1758654632920,-151.0,0.00023018,2]
[387218305,1758654632929,-151.0,0.00023018,2]
[387218306,1758654632939,-151.0,0.00023018,2]
[387218307,1758654632948,-500.0,0.00023018,2]
[387218308,1758654632958,-151.0,0.00023018,2]
[387218309,1758654632967,-500.0,0.00023018,2]
[387218310,1758654632977,-151.0,0.00023018,2]
[387218311,1758654632986,-500.0,0.00023018,2]
[387218312,1758654632996,-151.0,0.00023018,2]
[387218313,1758654633005,-151.0,0.00023018,2]
[387218314,1758654633015,-151.0,0.00023018,2]
[387218315,1758654633024,-151.0,0.00023018,2]
[387218316,1758654633033,-270.40066256,0.00023018,2]
[387218317,1758654633043,-151.0,0.00023018,2]
[387218318,1758654633053,-1070.4422756,0.00023025,2]
[387218319,1758654633062,-1339.84251739,0.00023073,2]
[387218320,1758654633073,-1023.66,0.000231,2]
[387218321,1758654633082,-150.0,0.00023142,4]
[387218322,1758654633092,-372.4,0.00023144,2]
[387218323,1758654633101,-163.35,0.00023246,30]
[387218324,1758654633112,-192.90879917,0.00023287,2]
[387218325,1758654633121,-1000.0,0.00023335,2]
[387218326,1758654633130,-250.0,0.00023358,2]
[387218327,1758654633140,-466.68663118,0.00023397,2]
[387218328,1758654633150,-200.0,0.00023545,2]
[387218329,1758654633161,-150.0,0.00023555,4]
[387218330,1758654633170,-166.85,0.00023557,2]
[387218331,1758654633180,-151.0,0.00023566,2]
[387218332,1758654633190,-176.19,0.0002387,2]
[387218333,1758654633199,-176.05,0.00023884,2]
[387218334,1758654633209,-5807.7218825,0.00023895,2]
[387218335,1758654633219,-150.0,0.00023968,4]
[387218336,1758654633228,-1041.89,0.00023999,2]
[387218337,1758654633237,-250.0,0.00023999,2]
[387218338,1758654633247,-7003.47234813,0.00024,3]
[387218339,1758654633268,-395.84908211,0.00024,3]
[387218340,1758654633280,-356.05682925,0.00024,3]
[387218341,1758654633373,-986.02734232,0.00024,3]
[387218342,1758654633500,-2055.81767418,0.00024,3]
[387218343,1758654637913,-151.0,0.000222,2]
[387218344,1758654637922,-151.0,0.00023999,2]
[387218345,1758654637932,-10903.0,0.00024,3]
[387218346,1758654637943,-10234.39,0.00024,3]
[387218347,1758654638049,-2438.30079521,0.00024,3]
[387218354,1758654640004,-1120.3,0.00024,3]
[387218491,1758654646119,-150.0,0.00023341,2]
[387218492,1758654646128,-11503.66252471,0.00023515,2]
[387218493,1758654646137,-2980.72686476,0.00024,3]
[387218507,1758654713889,-258.34363771,0.00022096,3]
[387218508,1758654721642,-400.0,0.00022096,3]
[387218509,1758654731666,-167.4608,0.00022096,3]
[387218510,1758654740374,-152.0,0.00022,2]
[387218515,1758654843844,-13.0,0.00022,2]
[387218516,1758654843886,-248.59732697,0.00022,2]
[387218518,1758654914696,-321.67662379,0.00019178,2]
[387218519,1758654937418,-78.32337621,0.00019178,2]
[387218520,1758654937455,-1097.80324758,0.00020382,2]
[387218521,1758654944645,-517.39534606,0.00020382,2]
[387218522,1758654952178,-1238.98,0.00020382,2]
[387218523,1758654959323,-400.0,0.00020382,2]
[387218524,1758654966986,-400.0,0.00020382,2]
[387218525,1758655114457,220.66328231,0.00022609,43]
[387218528,1758655177470,-75.17514009,0.00020382,2]
[387218529,1758655177512,-48.91704679,0.00021652,2]
[387218530,1758655185010,-248.0,0.00021652,2]
[387218532,1758655225929,-256.65,0.00019178,2]
[387218533,1758655280200,-73.75913186,0.00021652,2]
[387218534,1758655280656,-252.48173628,0.00021826,2]
[387218535,1758655286524,-186.98826372,0.00021826,2]
[387218536,1758655357628,-663.54534606,0.00021806,2]
[387218537,1758655364573,-1084.34,0.00021806,2]
[387218538,1758655372110,-254.34958455,0.00021806,2]
[387218539,1758655380120,-194.96716787,0.00021806,2]
[387218540,1758655387610,-254.34958455,0.00021806,2]
[387218541,1758655394647,-362.51,0.00021806,2]
[387218542,1758655397581,163.35,0.00022571,30]
[387218543,1758655401607,-216.39636229,0.00021806,2]
[387218544,1758655451831,-1547.46,0.00021821,2]
[387218545,1758655459032,-400.0,0.00021821,2]
[387218546,1758655467488,-414.08805113,0.00021821,2]
[387218547,1758655474130,-440.29,0.00021821,2]
[387218548,1758655481299,-199.26732697,0.00021821,2]
[387218550,1758655540673,-197.35796468,0.00021,2]
[387218551,1758655548228,-195.95903532,0.00021,2]
[387218552,1758655555331,-258.34363771,0.00021,2]
[387218553,1758655559372,-232.94775729,0.0001862,2]
[387218554,1758655562389,-400.0,0.0001862,2]
[387218555,1758655562962,-168.98149607,0.0001862,2]
[387218556,1758655566323,-162.052743,0.0001862,2]
[387218557,1758655569318,-179.22635049,0.0001862,2]
[387218558,1758655569844,-167.4608,0.0001862,2]
[387218559,1758655571806,-160.89782321,0.0001862,2]
[387218560,1758655575935,-168.0,0.0001862,2]
[387218561,1758655577159,-400.0,0.0001862,2]
[387218562,1758655584156,-251.3922,0.0001862,2]
[387218564,1758655591673,-152.0,0.0001862,2]
[387218565,1758655597776,627.519916,0.00018527,2]
[387218567,1758655607292,-252.48173628,0.0001862,2]
[387218568,1758655610073,-181.38976372,0.0001862,2]
[387218569,1758655614001,-186.98826372,0.0001862,2]
[387218571,1758655621219,-300.0,0.00018619,2]
[387218572,1758655621257,-947.46,0.0001862,2]
[387218573,1758655628290,-400.0,0.0001862,2]
[387218574,1758655635279,-414.08805113,0.0001862,2]
[387218575,1758655642302,-440.29,0.0001862,2]
[387218576,1758655649546,-199.26732697,0.0001862,2]
[387218577,1758655656512,-663.54534606,0.0001862,2]
[387218579,1758655663607,-1084.34,0.0001862,2]
[387218580,1758655671677,-254.34958455,0.0001862,2]
[387218582,1758655678622,-194.96716787,0.0001862,2]
[387218583,1758655684629,5198.307477,0.00018527,2]
[387218584,1758655685715,-254.34958455,0.0001862,2]
[387218587,1758655692826,-362.51,0.0001862,2]
[387218588,1758655699878,-216.39636229,0.0001862,2]
[387218591,1758655714345,-248.0,0.0001862,2]
[387218594,1758655728867,-167.4608,0.0001862,2]
[387218595,1758655735273,-424.93,0.0001862,2]
[387218596,1758655749184,-13.17,0.00018619,2]
[387218597,1758655749207,-286.83,0.00018619,2]
[387218598,1758655756271,-186.83,0.0001862,2]
[387218602,1758655763784,-8.17,0.0001862,2]
[387218603,1758655763825,-296.83,0.0001862,2]
[387218604,1758655768809,833.255947,0.00018526,2]
[387218605,1758655772432,-186.83,0.0001862,2]
[387218606,1758655785179,-500.0,0.0001862,2]
[387218607,1758655796310,188.08,9.695e-05,2]
[387218608,1758655796549,188.08,0.00010205,2]
[387218609,1758655796745,188.08,0.00010716,2]
[387218610,1758655797000,188.08,0.00011226,2]
[387218611,1758655797372,188.08,0.00011736,2]
[387218612,1758655797547,188.08,0.00012246,2]
[387218613,1758655797788,188.08,0.00012757,2]
[387218614,1758655798011,188.08,0.00013267,2]
[387218615,1758655798230,188.08,0.00013777,2]
[387218616,1758655798469,188.08,0.00014288,2]
[387218617,1758655798688,188.08,0.00014798,2]
[387218618,1758655798901,188.08,0.00015308,2]
[387218619,1758655799130,188.08,0.00015818,2]
[387218620,1758655799431,188.08,0.00016329,2]
[387218621,1758655799686,188.08,0.00016839,2]
[387218622,1758655800031,188.08,0.00017349,2]
[387218623,1758655800206,188.08,0.00017859,2]
[387218624,1758655800762,188.08,0.0001837,2]
[387218625,1758655806971,-36.46014147,0.00018601,2]
[387218626,1758655806993,-124.43768174,0.00018601,2]
[387218627,1758655814081,-195.95903532,0.00018619,2]
[387218628,1758655821619,-258.34363771,0.00018619,2]
[387218629,1758655829233,-745.69732697,0.00018619,2]
[387218630,1758655829263,-300.0,0.00018619,2]
[387218631,1758655829289,-300.0,0.00018619,2]
[387218632,1758655829357,-9360.82915119,0.0001862,2]
[387218639,1758655832114,-3170.88466709,0.0001862,2]
[387218640,1758655832128,-11098.97718709,0.0001862,2]
[387218641,1758655832140,-188.08,0.0001888,2]
[387218642,1758655832150,-823.34,0.00019072,2]
[387218643,1758655832160,-195.0,0.00019291,2]
[387218644,1758655832170,-800.0,0.0001931,2]
[387218645,1758655832180,-188.08,0.0001939,2]
[387218646,1758655832190,-200.0,0.00019609,2]
[387218647,1758655832200,-15971.65316226,0.00019899,2]
[387218648,1758655832212,-1500.8580844,0.00019899,2]
[387218649,1758655832222,-2500.0,0.00019899,2]
[387218650,1758655832232,-2500.0,0.00019899,2]
[387218651,1758655832242,-333.57090339,0.000199,2]
[387218652,1758655832252,-850.0,0.00019904,2]
[387218653,1758655832261,-17472.51124666,0.00019905,2]
[387218654,1758655832272,-17472.51124666,0.00019911,2]
[387218655,1758655832282,-17472.51124666,0.00019917,2]
[387218656,1758655832293,-17472.51124666,0.00019923,2]
[387218657,1758655832304,-17472.51124666,0.00019929,2]
[387218658,1758655832314,-17472.51124666,0.00019935,2]
[387218659,1758655832326,-17472.51124666,0.00019941,2]
[387218660,1758655832336,-17472.51124666,0.00019947,2]
[387218661,1758655832346,-183.79283244,0.00019953,3]
[387218662,1758655832356,-1271.12662476,0.00019953,2]
[387218663,1758655832369,-224.62467527,0.00019953,2]
[387218664,1758655832379,-1100.74471936,0.00019953,2]
[387218665,1758655832388,-160.7007797,0.00019973,2]
[387218666,1758655832398,-500.95146613,0.00019973,2]
[387218667,1758655832407,-501.99055982,0.00019973,2]
[387218668,1758655832417,-500.0,0.00019973,2]
[387218669,1758655832426,-500.0,0.00019973,2]
[387218670,1758655832436,-500.0,0.00019973,2]
[387218671,1758655832445,-500.0,0.00019973,2]
[387218672,1758655832455,-500.0,0.00019973,2]
[387218673,1758655832465,-259.66378176,0.00019997,2]
[387218674,1758655832474,-500.0,0.00019998,2]
[387218675,1758655832484,-284.05012745,0.00019998,2]
[387218676,1758655832493,-267.76335818,0.00019998,2]
[387218677,1758655832503,-432.1637516,0.00019998,2]
[387218678,1758655832512,-300.0,0.00019999,2]
[387218679,1758655832521,-2900.86596147,0.00019999,2]
[387218680,1758655832531,-500.0,0.00019999,2]
[387218681,1758655832540,-210.22984995,0.00019999,2]
[387218682,1758655832550,-500.0,0.00019999,2]
[387218683,1758655832559,-500.0,0.00019999,2]
[387218684,1758655832570,-313.62727667,0.00019999,2]
[387218685,1758655832581,-500.0,0.00019999,2]
[387218686,1758655832591,-500.0,0.00019999,2]
[387218687,1758655832600,-500.0,0.00019999,2]
[387218688,1758655832610,-500.0,0.00019999,2]
[387218689,1758655832619,-500.0,0.00019999,2]
[387218690,1758655832628,-313.17,0.00019999,2]
[387218691,1758655832639,-500.0,0.00019999,2]
[387218692,1758655832648,-186.83,0.00019999,2]
[387218693,1758655832658,-500.0,0.00019999,2]
[387218694,1758655832669,-186.83,0.00019999,2]
[387218695,1758655832679,-4403.78332342,0.00019999,2]
[387218696,1758655832826,-3523.03684651,0.00019999,2]
[387218697,1758655832836,-36818.13511381,0.0002,5]
[387218699,1758655832848,-6326.84831072,0.0002,5]
[387218701,1758655832875,-480.46360534,0.0002,5]
[387218702,1758655832886,-1106.89613506,0.0002,5]
[387218703,1758655832909,-15675.83294863,0.0002,5]
[387218704,1758655832920,-482.33658886,0.0002,5]
[387218705,1758655832932,-1888.70724275,0.0002,5]
[387218706,1758655832942,-1889.24533074,0.0002,5]
[387218707,1758655832953,-1713.97551023,0.0002,5]
[387218714,1758655833045,-2383.52304686,0.0002,5]
[387218715,1758655833065,-487.97704552,0.0002,5]
[387218716,1758655833079,-309.94380911,0.0002,5]
[387218717,1758655833091,-1000.13225756,0.0002,5]
[387218722,1758655838083,-475.41776111,0.0001991,2]
[387218723,1758655838092,-17472.51124666,0.00019953,2]